Cogmind - Beta 13 @@@ ROGUE MODE // 2024.05.21 @ 21:07:42 Player: CrossedViper Result: Destroyed by G-47 Trooper with Particle Gun Performance ------------- Evolutions (2) 1000 Regions Visited (6) 1200 Robots Destroyed (95) 475 Value Destroyed (4004) 4004 Prototype IDs (14) 280 Alien Tech Used (0) 0 Bonus (970) 970 TOTAL SCORE: 7929 Bonus ------- High Alert Combat Kills 615 Entered Garrisons 400 Friendly Fire -45 Cogmind --------- Core Integrity 0/550 Matter 30/300 Energy 290/290 System Corruption 13% Temperature Hot (294) Movement Walking (110) Location -8/Garrison Parts ------- > --- POWER (1) -------- Improved Deuterium Engine > --- PROPULSION (3) --- VSS Leg Cargo Legs > --- UTILITY (5+2) ---- Improved Heat Sink Large Storage Unit Machine Analyzer Hardened Light Armor Plating Hardened Medium Armor Plating > --- WEAPON (2) ------- Magnetic Acceleration Cannon Magnetic Acceleration Cannon > --- INVENTORY (15) --- Improved VTOL Module ECM Suite Cobbler Unit Magnetic Acceleration Cannon Magnetic Acceleration Cannon Great Maul Great Maul Segregator Trap Segregator Trap Peak State ------------ > --- POWER ------------ Improved Deuterium Engine > --- PROPULSION ------- VSS Leg Cargo Legs > --- UTILITY ---------- Improved Heat Sink Large Storage Unit Machine Analyzer Hardened Light Armor Plating Hardened Medium Armor Plating > --- WEAPON ----------- Magnetic Acceleration Cannon Magnetic Acceleration Cannon > --- INVENTORY -------- Improved VTOL Module ECM Suite Cobbler Unit Magnetic Acceleration Cannon Great Maul Great Maul Segregator Trap Segregator Trap [Rating: 47] Favorites ----------- Power Light Ion Engine Engine Light Ion Engine Power Core Micro Nuclear Core Propulsion Light Treads Treads Light Treads Leg Cargo Legs Hover Unit Aerolev Unit Flight Unit Improved VTOL Module Utility Salvage Targeting Computer Device Improved Heat Sink Storage Large Storage Unit Processor Salvage Targeting Computer Hackware System Shield Protection Scrap Shield Weapon Heavy Battle Rifle Energy Gun Shock Rifle Ballistic Gun Heavy Battle Rifle Ballistic Cannon Magnetic Acceleration Cannon Launcher Subdweller Shrapnel Launcher Impact Weapon Great Maul Slashing Weapon Katana Build | -11 -10 -10 -8 -8 -8 -8 ------- Run | Yrd Mat Sub Mat Gar Mat Gar Slots Evolved 4 | . . . 4 . . . Power . | . . . . . . . Propulsion 1 | . . . 1 . . . Utility 3 | . . . 3 . . . Weapon . | . . . . . . . Parts Attached 85 | 6 8 16 20 19 . 16 Power 8 | 1 1 3 1 1 . 1 Engine 6 | 1 1 3 . . . 1 Core 2 | . . . 1 1 . . Reactor . | . . . . . . . Propulsion 26 | 2 1 5 6 6 . 6 Treads 18 | 2 1 5 1 6 . 3 Leg 2 | . . . . . . 2 Wheel . | . . . . . . . Hover 5 | . . . 4 . . 1 Flight 1 | . . . 1 . . . Utility 17 | 1 2 2 6 3 . 3 Device 4 | . . . 2 1 . 1 Storage 3 | 1 1 1 . . . . Processor 3 | . 1 . 1 1 . . Hackware 1 | . . . 1 . . . Protection 6 | . . 1 2 1 . 2 Artifact . | . . . . . . . Weapon 34 | 2 4 6 7 9 . 6 Energy Gun 7 | . . 1 1 4 . 1 Energy Cannon . | . . . . . . . Ballistic Gun 15 | 2 4 5 4 . . . Ballistic Cannon 2 | . . . . . . 2 Launcher 5 | . . . 2 1 . 2 Special Weapon . | . . . . . . . Impact Weapon 1 | . . . . 1 . . Slashing Weapon 4 | . . . . 3 . 1 Piercing Weapon . | . . . . . . . Special Melee Weapon . | . . . . . . . Unidentified Prototypes 2 | . . . 2 . . . Corrupted Parts 2 | . . . . 1 . 1 System Corruption 9 | . . . . 7 . 2 Parts Lost 27 | . 1 3 4 7 . 12 Power 5 | . 1 2 1 . . 1 Propulsion 8 | . . 1 . 2 . 5 Utility 7 | . . . 1 4 . 2 Weapon 7 | . . . 2 1 . 4 Highest Loss Streak 12 | . 1 1 2 3 . 12 To Critical Strikes 1 | . . . . . . 1 Average Slot Usage (%) 91 | . 99 92 81 96 90 69 Engine 9 | . 13 12 7 . . 3 Core 1 | . . . 1 9 9 2 Treads 24 | . 28 28 8 23 27 6 Hover 2 | . . . 13 2 . 2 Device 2 | . . . 4 8 9 6 Storage 9 | . 14 8 9 9 9 7 Processor 9 | . 13 8 8 14 18 10 Protection 5 | . . 5 7 7 . 8 Energy Gun 3 | . . 2 . 11 9 2 Ballistic Gun 19 | . 28 25 16 3 . . Naked Turns . | . . . . . . . Heaviest Build 60 | 12 19 33 50 45 32 60 Greatest Support 67 | 40 40 40 40 60 60 67 Greatest Overweight (x) 5 | . . . 5 1 . 3 Average Overweight (x) . | . . . . . . . Largest Inventory Capacity 15 | 8 10 15 15 15 15 15 Average Capacity 10 | 6 8 8 15 15 15 15 Most Carried 15 | 4 8 10 15 15 14 14 Average Carried 8 | 2 7 6 10 13 14 9 Final Capacity 15 | 8 10 15 15 15 15 15 Final Carried 14 | 4 7 9 14 14 14 10 Class Distribution -------------------- 47% | Mutant 31% | Derelict-Mutant 21% | Scavenger-Mutant Dominant Class ---------------- Mutant | -10/Materials Mutant | -10/Subcaves Mutant | -8/Materials Scavenger-Mutant | -8/Garrison Scavenger-Mutant | -8/Materials Scavenger-Mutant | -8/Garrison Resources | -11 -10 -10 -8 -8 -8 -8 ----------- Run | Yrd Mat Sub Mat Gar Mat Gar Matter Collected 2431 | 266 222 616 705 432 . 190 Remotely . | . . . . . . . Salvage Created 2966 | 73 360 541 912 762 . 318 Parts 179 | 4 23 36 46 53 . 17 Haulers Intercepted 2 | . 1 . 1 . . . Recyclers Shooed 3 | . 2 . 1 . . . Parts Field Recycled . | . . . . . . . Retrieved Matter . | . . . . . . . Parts Self-Destructed 7 | . . 7 . . . . Prevented . | . . . . . . . Kills | -11 -10 -10 -8 -8 -8 -8 ------- Run | Yrd Mat Sub Mat Gar Mat Gar Combat Hostiles Destroyed 83 | . 9 11 24 27 . 12 Melee 6 | . . . . 4 . 2 Guns 53 | . 9 11 17 16 . . Cannons 3 | . . . . . . 3 AOE 21 | . . . 7 7 . 7 Classes Destroyed 17 | 1 4 4 5 1 . 2 Worker 2 | . . . 2 . . . Builder 2 | . . . 2 . . . Tunneler 1 | . . . 1 . . . Hauler 2 | . 1 . 1 . . . Recycler 3 | 1 1 . 1 . . . Watcher 2 | . 1 . 1 . . . Swarmer 21 | . 3 1 3 14 . . Grunt 30 | . 6 . 14 5 . 5 Duelist 2 | . . . 2 . . . Sentry 13 | . . 1 4 5 . 3 Specialist 1 | . . . . . . 1 Hunter 2 | . . . 1 . . 1 Programmer 3 | . . . . 3 . . Artisan 2 | . . 2 . . . . Cobbler 2 | . . 2 . . . . Subdweller 9 | . . 9 . . . . Thug 1 | . . . . . . 1 Savage 1 | . . . . . . 1 Best Kill Streak 8 | 1 6 2 8 5 . 8 Combat Bots Only 8 | . 6 2 6 5 . 8 Max Kills in Single Turn 3 | 1 2 1 2 3 . 2 Gunslinging . | . . . . . . . Exploded 3 | . . . 2 3 . 2 Melee 1 | . . . . 1 . 1 Uniques/NPCs Destroyed . | . . . . . . . Combat | -11 -10 -10 -8 -8 -8 -8 -------- Run | Yrd Mat Sub Mat Gar Mat Gar Hostile Shots Fired 498 | . 33 67 113 133 . 152 Missed 156 | . 9 20 29 44 . 54 Damage Taken 5194 | . 369 965 1170 1122 . 1568 Core 781 | . 92 135 153 98 . 303 Absorbed by Shields 272 | . . . 160 112 . . Core Remaining (%) 54 | 100 . 9 . . . . Volleys Fired 288 | 1 31 86 79 66 . 25 Largest 2 | 2 2 2 2 2 . 2 Hottest 106 | 40 46 93 88 106 . 106 Shots Fired 487 | 2 61 138 133 116 . 37 Gun 432 | 2 61 138 120 108 . 3 Cannon 27 | . . . . . . 27 Launcher 28 | . . . 13 8 . 7 Special . | . . . . . . . Kinetic 382 | 2 61 128 129 28 . 34 Thermal 58 | . . 10 4 42 . 2 Explosive . | . . . . . . . Electromagnetic 47 | . . . . 46 . 1 Robot Hit Streak 12 | 2 9 12 9 9 . 9 Robot Miss Streak 4 | . 4 2 4 2 . 4 Penetration Max . | . . . . . . . Secondary Targets 7 | . . . 3 4 . . Max Gunslinging Chain 1 | . . . 1 1 . . Shots Hit Robots 320 | 2 45 93 87 63 . 30 Core Hits 179 | 2 20 30 70 35 . 22 Critical Kills 2 | . . 1 1 . . . Critical Parts Destroyed 1 | . . . 1 . . . Critical Strikes 8 | . . 1 2 4 . 1 Burn 2 | . . . . 2 . . Destroy 3 | . . 1 2 . . . Corrupt 1 | . . . . 1 . . Sever 2 | . . . . 1 . 1 Melee Attacks 33 | . . . . 26 . 7 Impact 3 | . . . . 3 . . Slashing 30 | . . . . 23 . 7 Piercing . | . . . . . . . Sneak Attacks . | . . . . . . . Combat Hostiles . | . . . . . . . Follow-up Attacks . | . . . . . . . Damage Inflicted 8971 | 28 657 1644 2873 2068 . 1701 Guns 4698 | 28 652 1644 1578 781 . 15 Cannons 544 | . . . . . . 544 Explosions 2994 | . . . 1295 734 . 965 Melee 730 | . . . . 553 . 177 Ramming 5 | . 5 . . . . . Kinetic 7587 | 28 652 1539 2841 1018 . 1509 Thermal 407 | . . 105 32 255 . 15 Explosive . | . . . . . . . Electromagnetic 242 | . . . . 242 . . Impact . | . . . . . . . Slashing 730 | . . . . 553 . 177 Piercing . | . . . . . . . Highest Corruption 13 | . . . . 11 11 13 Average Corruption 6 | . . . . 4 11 12 Corruption Purged . | . . . . . . . Corruption Blocked . | . . . . . . . Effects 29 | . . . . 19 1 9 Message Errors 8 | . . . . 4 . 4 Matter Fused 6 | . . . . 6 . . Heat Flow Errors 2 | . . . . 1 . 1 Energy Discharges 5 | . . . . 4 1 . Parts Rejected 1 | . . . . . . 1 Data Loss (minor) 3 | . . . . 2 . 1 Data Loss (major) 1 | . . . . 1 . . Misfires 1 | . . . . 1 . . Weapon Failures 2 | . . . . . . 2 Overload Shots . | . . . . . . . Overflow Damage 132 | . . . 17 93 . 22 Projectiles 17 | . . . . . . 17 Explosions 30 | . . . 17 8 . 5 Melee 85 | . . . . 85 . . Knockbacks 8 | . 1 . . . . 7 Impact 1 | . 1 . . . . . Kinetic 4 | . . . . . . 4 Secondary 3 | . . . . . . 3 Self-Inflicted Damage 393 | . . . 112 70 . 211 Shots 12 | . . . 3 3 . 6 Rammed 3 | 1 2 . . . . . Targets Rammed 3 | 1 2 . . . . . Kicked . | . . . . . . . Crushed . | . . . . . . . Highest Temperature 302 | . 7 . 243 302 . 285 Average Temperature 85 | . 1 . 64 121 . 102 Received Heat Transfer 1518 | . 105 237 612 177 . 387 Effects 2 | . . . . 1 . 1 Energy Bleed 1 | . . . . . . 1 Interference 1 | . . . . 1 . . Siege Activations . | . . . . . . . Robots Corrupted . | . . . . . . . Combat Hostiles . | . . . . . . . Parts Fried . | . . . . . . . Impact Corruptions . | . . . . . . . Robots Melted . | . . . . . . . Combat Hostiles . | . . . . . . . Parts Melted 2 | . . . . 2 . . Heat Transferred 939 | . . 125 74 703 . 37 Parts Sabotaged . | . . . . . . . Parts Stolen . | . . . . . . . Parts Stripped . | . . . . . . . Power Chain Reactions . | . . . . . . . Alert | -11 -10 -10 -8 -8 -8 -8 ------- Run | Yrd Mat Sub Mat Gar Mat Gar Peak Influence 1538 | 5 280 . 692 1538 749 664 Initial 749 | . 3 . . 449 749 486 Average 522 | . 109 . 221 880 749 574 Maximum Alert Level 4 | . 1 . 2 4 3 2 Low Security (%) 29 | 100 87 . 48 . . . Level 1 12 | . 12 . 34 . . . Level 2 27 | . . . 17 33 . 100 Level 3 19 | . . . . 42 100 . Level 4 10 | . . . . 24 . . Level 5 . | . . . . . . . High Security . | . . . . . . . Max Security . | . . . . . . . Squads Dispatched 7 | . 2 . 5 . . . Investigation 6 | . 2 . 4 . . . Extermination . | . . . . . . . Reinforcement 1 | . . . 1 . . . Assault . | . . . . . . . Garrison . | . . . . . . . Intercept . | . . . . . . . Searches Triggered . | . . . . . . . Construction Impeded . | . . . . . . . Haulers Reinforced . | . . . . . . . Active Scanning Responses . | . . . . . . . Cargo Convoy Interrupts . | . . . . . . . Stealth | -11 -10 -10 -8 -8 -8 -8 --------- Run | Yrd Mat Sub Mat Gar Mat Gar Distress Signals 3 | . . . 3 . . . Communications Jammed . | . . . . . . . Distress Signals . | . . . . . . . Times Spotted 97 | . 12 11 38 25 . 11 Peak Tracking Total 6 | . 3 2 6 4 . 6 Tactical Retreats 5 | . . . 3 2 . . Traps | -11 -10 -10 -8 -8 -8 -8 ------- Run | Yrd Mat Sub Mat Gar Mat Gar Traps Triggered 7 | . 3 2 . 1 . 1 Indirectly . | . . . . . . . Trap Hack Attempts . | . . . . . . . Triggered . | . . . . . . . Disarmed . | . . . . . . . Reprogrammed 6 | . . . 6 . . . Reused 1 | . . . 1 . . . Traps Extracted . | . . . . . . . Installed . | . . . . . . . Triggered 1 | . . . 1 . . . Most Traps Carried 2 | . . . . 2 2 2 Machines | -11 -10 -10 -8 -8 -8 -8 ---------- Run | Yrd Mat Sub Mat Gar Mat Gar Machines Disabled 14 | . . 1 3 10 . . Max in Single Turn 2 | . . 1 1 2 . . Garrison Relay 3 | . . . . 3 . . Phase Generator 1 | . . . . 1 . . Machines Repaired . | . . . . . . . Machines Dismantled . | . . . . . . . Machines Sabotaged . | . . . . . . . Overloaded Fab Kills . | . . . . . . . Hacking | -11 -10 -10 -8 -8 -8 -8 --------- Run | Yrd Mat Sub Mat Gar Mat Gar Machines Accessed 19 | . 3 2 9 4 1 . Terminals 13 | . 2 . 7 4 . . Fabricators . | . . . . . . . Repair Stations . | . . . . . . . Recycling Units 1 | . 1 . . . . . Scanalyzers 1 | . . . 1 . . . Garrison Access 2 | . . . 1 . 1 . Total Hacks 55 | . 10 3 34 6 2 . Successful 29 | . 4 3 19 2 1 . Failed 26 | . 6 . 15 4 1 . Catastrophic 7 | . . . 6 1 . . Database Lockouts . | . . . . . . . Manual 31 | . 10 . 21 . . . Terminals 39 | . 9 . 24 6 . . Fabricators . | . . . . . . . Repair Stations . | . . . . . . . Recycling Units 1 | . 1 . . . . . Scanalyzers 9 | . . . 9 . . . Garrison Access 3 | . . . 1 . 2 . Terminal Hacks 15 | . 3 3 7 2 . . Record 2 | . . 2 . . . . Robot Analysis 5 | . 3 . 2 . . . Prototype ID Bank 1 | . . . 1 . . . Open Door 1 | . . . . 1 . . Emergency Access Points 1 | . . . . 1 . . Terminal Index 1 | . . . 1 . . . Locate Traps 1 | . . . 1 . . . Reprogram Traps 2 | . . . 2 . . . Derelict Proto ID Bank 1 | . . 1 . . . . Fabricator Hacks . | . . . . . . . Repair Station Hacks . | . . . . . . . Recycling Unit Hacks . | . . . . . . . Scanalyzer 9 | . . . 9 . . . Insert Component 4 | . . . 4 . . . Analyze 5 | . . . 5 . . . Garrison Access Hacks 2 | . . . 1 . 1 . Unlock Access 2 | . . . 1 . 1 . Unauthorized Hacks 3 | . 1 . 2 . . . Terminals 2 | . . . 2 . . . Botnet 2 | . . . 2 . . . Fabricators . | . . . . . . . Repair Stations . | . . . . . . . Recycling Units 1 | . 1 . . . . . Tunnel 1 | . 1 . . . . . Scanalyzers . | . . . . . . . Garrison Access . | . . . . . . . Data Cores Recovered . | . . . . . . . Used . | . . . . . . . Hacking Detections 14 | . 2 . 8 4 . . Full Trace Events 6 | . 2 . 4 . . . Feedback Events . | . . . . . . . Feedback Blocked . | . . . . . . . Robot Schematics Acquired . | . . . . . . . Robots Built . | . . . . . . . Authchips . | . . . . . . . Time . | . . . . . . . Total Robot Build Rating . | . . . . . . . Part Schematics Acquired 4 | . . . 4 . . . Parts Built . | . . . . . . . Authchips . | . . . . . . . Time . | . . . . . . . Total Part Build Rating . | . . . . . . . Parts Repaired . | . . . . . . . Time . | . . . . . . . Parts Recycled . | . . . . . . . Recycled Matter . | . . . . . . . Retrieved Matter . | . . . . . . . Retrieved Components . | . . . . . . . Parts Scanalyzed 4 | . . . 4 . . . Part Schematics Acquired 4 | . . . 4 . . . Parts Damaged . | . . . . . . . Bothacking | -11 -10 -10 -8 -8 -8 -8 ------------ Run | Yrd Mat Sub Mat Gar Mat Gar Used RIF Installer . | . . . . . . . Robots Hacked . | . . . . . . . Non-combat . | . . . . . . . Combat . | . . . . . . . Robot Hacks Applied . | . . . . . . . Relay Couplers Released 12 | . . . . 12 . . Machine Destruction 12 | . . . . 12 . . Fabnet Peak Effective % . | . . . . . . . Robots Rewired . | . . . . . . . Allies Hacked . | . . . . . . . Hacks Repelled . | . . . . . . . Allies | -11 -10 -10 -8 -8 -8 -8 -------- Run | Yrd Mat Sub Mat Gar Mat Gar Total Allies 1 | . . . . 1 . . Largest Group 1 | . . . . 1 1 1 Highest-Rated Group 20 | . . . . 20 20 20 Highest-Rated Ally 20 | . . . . 20 20 20 Total Orders . | . . . . . . . Ally Attacks 2 | . . . . . . 2 Total Damage 24 | . . . . . . 24 Kills . | . . . . . . . Allies Corrupted . | . . . . . . . Allies Melted . | . . . . . . . Intel | -11 -10 -10 -8 -8 -8 -8 ------- Run | Yrd Mat Sub Mat Gar Mat Gar Robot Analysis Total 5 | . 3 . 2 . . . Derelict Logs Recovered 3 | . . 3 . . . . Drone Launches . | . . . . . . . Drone Recoveries . | . . . . . . . Exploration | -11 -10 -10 -8 -8 -8 -8 ------------- Run | Yrd Mat Sub Mat Gar Mat Gar Turns Passed 8795 | 110 419 5325 1125 1533 20 263 Spaces Moved 4744 | 62 183 2987 605 786 12 109 Core 5 | 5 . . . . . . Treads 4149 | 57 183 2987 202 685 12 23 Legs 83 | . . . . . . 83 Wheels . | . . . . . . . Hover 507 | . . . 403 101 . 3 Flight . | . . . . . . . Fastest Speed 50 | 50 160 160 102 102 160 110 Average Speed 155 | 151 160 160 140 152 160 128 Slowest Speed 390 | 160 160 160 390 160 160 240 Overloaded Moves . | . . . . . . . Propulsion Burnouts . | . . . . . . . Robots Hopped . | . . . . . . . Cave-ins Triggered . | . . . . . . . Exploration Rate (%) 40 | 5 34 84 56 91 2 14 Regions Visited 6 Branch Regions 1 Pre-discovered Areas 2 | . 1 1 . . . . Known Exits Taken 2 | . . . 1 . 1 . Unknown Exits Taken 3 | 1 1 1 . . . . Scrap Searched 9 | . . 9 . . . . Spaces Dug 94 | . . . 76 9 . 9 Terrain Destroyed 336 | . . 4 163 110 . 59 Melee 2 | . . . . 2 . . Projectile 9 | . . 4 5 . . . AOE 325 | . . . 158 108 . 59 Terrain Rammed . | . . . . . . . Walls Destroyed . | . . . . . . . Machines Disabled . | . . . . . . . Actions | -11 -10 -10 -8 -8 -8 -8 --------- Run | Yrd Mat Sub Mat Gar Mat Gar Total 5607 | 73 246 3397 738 962 12 179 Wait 362 | . 12 265 19 49 . 17 Move 4741 | 62 182 2986 605 785 12 109 Hop . | . . . . . . . Pick Up 50 | 4 7 16 11 9 . 3 Fast Attach 40 | 6 4 7 9 5 . 9 Attach 22 | . 1 5 4 6 . 6 Detach . | . . . . . . . Swap 23 | . 3 4 7 8 . 1 Drop 40 | . 4 22 4 8 . 2 Fire 288 | 1 31 86 79 66 . 25 Melee 33 | . . . . 26 . 7 Ram . | . . . . . . . Kick . | . . . . . . . Crush 2 | . 2 . . . . . Escape Stasis . | . . . . . . . Rewire . | . . . . . . . Trap . | . . . . . . . Miscellaneous 6 | . . 6 . . . . Route ------- -11/Scrapyard -10/Materials (discovered 2 exits: [*Min] / *Sub) -10/Subcaves (discovered 2 exits: *Mat / Rec) -8/Materials (discovered 2 exits: [*Fac] / Gar) -8/Garrison (discovered 3 exits: *Mat x3) -8/Materials -8/Garrison History --------- Turn | Location | Event 9 | -11/Scrapyard | Discovered new exit (range 15) 111 | -11/Scrapyard | Entered Materials 275 | -10/Materials | Discovered new exit (range 16) 316 | -10/Materials | Build established: Mutant 473 | -10/Materials | Discovered new exit (range 8) 530 | -10/Materials | Entered Subcaves 566 | -10/Subcaves | Identified exit to Recycling 572 | -10/Subcaves | Learned Materials trap positions 1559 | -10/Subcaves | Shifting Twisted Machinery released Riot Gun 1591 | -10/Subcaves | Shifting Twisted Machinery released Spk. Treads 1898 | -10/Subcaves | Discovered new exit (range 15) 1928 | -10/Subcaves | Visited Clippyterm 2461 | -10/Subcaves | Build established: Scavenger-Mutant 2776 | -10/Subcaves | Build established: Mutant 2784 | -10/Subcaves | Core integrity fell below 50% 3562 | -10/Subcaves | Disturbed a concealed Subdweller 3781 | -10/Subcaves | Learned location of Storage (-7) 3811 | -10/Subcaves | Core integrity fell below 20% 3951 | -10/Subcaves | Build established: Derelict-Mutant 4152 | -10/Subcaves | Ambushed by angry Subdweller bent on revenge 4673 | -10/Subcaves | Visited 4L-MR0's lab 5541 | -10/Subcaves | Found Cargo Legs 5855 | -10/Subcaves | Entered Materials 5855 | -8/Materials | Evolved 4 slots: Propulsion x1, Utility x3 5856 | -8/Materials | Loaded intel: 27 trap records 6709 | -8/Materials | Build established: Mutant 6849 | -8/Materials | Discovered new exit (range 5) 6980 | -8/Materials | Identified exit to Garrison 6980 | -8/Materials | Entered Garrison 7104 | -8/Garrison | Triggered checkpoint 7186 | -8/Garrison | Garrison Relay disabled 7379 | -8/Garrison | Triggered checkpoint 7380 | -8/Garrison | Triggered checkpoint 7450 | -8/Garrison | Build established: Scavenger-Mutant 7509 | -8/Garrison | Lost 3 parts (3u) 7552 | -8/Garrison | Discovered new exit (range 10) 7725 | -8/Garrison | Phase Generator disabled 7951 | -8/Garrison | Discovered new exit (range 8) 8022 | -8/Garrison | Triggered checkpoint 8138 | -8/Garrison | Garrison Relay disabled 8161 | -8/Garrison | Discovered new exit (range 9) 8320 | -8/Garrison | Triggered checkpoint 8383 | -8/Garrison | Triggered checkpoint 8451 | -8/Garrison | Rescued a captive Derelict 8455 | -8/Garrison | System corruption reached 10% 8513 | -8/Garrison | Entered Materials 8513 | -8/Materials | Accompanied by 1 ally 8533 | -8/Materials | Identified exit to Garrison 8533 | -8/Materials | Entered Garrison 8533 | -8/Garrison | Accompanied by 1 ally 8583 | -8/Garrison | Core integrity fell below 50% 8617 | -8/Garrison | Core integrity fell below 20% 8637 | -8/Garrison | Destroyed 8 combat bots 8637 | -8/Garrison | Attached Cargo Legs, gained temporary slots: Utility x2 8660 | -8/Garrison | Lost 12 parts (1p5n2u4w) 8796 | -8/Garrison | Destroyed by G-47 Trooper with Particle Gun Last Messages --------------- 08741_ Acquired 10 matter. 08744_ Acquired 4 matter. 08752_ System corrupted: Heat flow error (+117). 08758_ C-30 ARC bursts open, deploying its payload. 08758_ G-50 Soldier unfolds itself. 08758_ G-47 Trooper unfolds itself. 08760_ G-50 Soldier knocked back. 08767_ Destroyed Lgt. Angular Momentum Engine. 08770_ G-50 Soldier knocked back. 08773_ System corrupted: Magnetic Acceleration Cannon jammed. 08776_ Destroyed Imp. Heat Sink. 08779_ G-47 Trooper destroyed. 08788_ G-50 Soldier destroyed. 08789_ Overheating: Energy bleed (-29). 08790_